Cogmind - Beta 13 @@@ ROGUE MODE // 2024.05.15 @ 19:53:40 Player: BatSpy Result: Destroyed by G-34 Mercenary with Small Laser Performance ------------- Evolutions (1) 500 Regions Visited (4) 800 Robots Destroyed (18) 90 Value Destroyed (415) 415 Prototype IDs (1) 20 Alien Tech Used (0) 0 Bonus (0) 0 TOTAL SCORE: 1825 Bonus ------- None Cogmind --------- Core Integrity 0/400 Matter 290/300 Energy 42/250 System Corruption 1% Temperature Cool (6) Movement Core (150) Ox2 Location -9/Mines Parts ------- > --- POWER (1) -------- Ion Engine > --- PROPULSION (4) --- (None) > --- UTILITY (2) ------ Improved Signal Interpreter > --- WEAPON (2) ------- Heavy Particle Gun > --- INVENTORY (5) ---- Improved Heat Sink Mining Laser Peak State ------------ > --- POWER ------------ Improved Ion Engine > --- PROPULSION ------- (None) > --- UTILITY ---------- Cryofiber Web Improved Signal Interpreter > --- WEAPON ----------- Heavy Particle Gun Heavy Particle Gun > --- INVENTORY -------- Flight Unit Heavy Particle Gun [Rating: 16] Favorites ----------- Power Light Ion Engine Engine Light Ion Engine Power Core Light Nuclear Core Propulsion Flight Unit Leg Aluminum Leg Hover Unit Hover Unit Flight Unit Flight Unit Utility Small Storage Unit Device Cryofiber Web Storage Small Storage Unit Processor Improved Signal Interpreter Weapon Light Assault Rifle Energy Gun EM Pulse Gun Ballistic Gun Light Assault Rifle Special Weapon Mining Laser Build | -11 -10 -10 -9 -9 ------- Run | Yrd Mat Min Mat Min Slots Evolved 2 | . . . 2 . Power . | . . . . . Propulsion 2 | . . . 2 . Utility . | . . . . . Weapon . | . . . . . Parts Attached 37 | 7 3 9 15 3 Power 7 | 1 1 1 3 1 Engine 6 | 1 . 1 3 1 Core 1 | . 1 . . . Reactor . | . . . . . Propulsion 9 | 2 . 3 4 . Treads . | . . . . . Leg 3 | 2 . 1 . . Wheel . | . . . . . Hover 2 | . . . 2 . Flight 4 | . . 2 2 . Utility 8 | 1 1 2 3 1 Device 4 | . 1 2 1 . Storage 1 | 1 . . . . Processor 3 | . . . 2 1 Hackware . | . . . . . Protection . | . . . . . Artifact . | . . . . . Weapon 13 | 3 1 3 5 1 Energy Gun 7 | 2 . 2 3 . Energy Cannon . | . . . . . Ballistic Gun 5 | 1 1 1 2 . Ballistic Cannon . | . . . . . Launcher . | . . . . . Special Weapon 1 | . . . . 1 Impact Weapon . | . . . . . Slashing Weapon . | . . . . . Piercing Weapon . | . . . . . Special Melee Weapon . | . . . . . Unidentified Prototypes 1 | . . . 1 . Corrupted Parts 2 | . 1 1 . . System Corruption 3 | . 2 1 . . Parts Lost 25 | . 6 2 15 2 Power 5 | . 2 . 3 . Propulsion 7 | . 1 1 5 . Utility 4 | . . 1 2 1 Weapon 9 | . 3 . 5 1 Highest Loss Streak 7 | . 3 5 7 5 To Critical Strikes . | . . . . . Average Slot Usage (%) 66 | . 74 82 58 44 Engine 9 | . 10 13 7 . Leg 8 | . 26 8 . . Hover 3 | . . . 5 . Flight 8 | . . 18 9 . Device 7 | . 3 9 9 . Storage 7 | . 14 14 2 . Processor 5 | . . . 8 22 Energy Gun 8 | . 14 7 6 11 Ballistic Gun 7 | . 4 12 8 . Naked Turns . | . . . . . Heaviest Build 12 | 12 12 12 12 4 Greatest Support 20 | 20 20 20 12 3 Greatest Overweight (x) 3 | . . 1 3 1 Average Overweight (x) . | . . . . . Largest Inventory Capacity 8 | 8 8 8 8 5 Average Capacity 6 | 6 8 8 5 5 Most Carried 6 | 5 4 5 6 3 Average Carried 2 | . . 3 2 1 Final Capacity 8 | 8 8 8 5 5 Final Carried 4 | . 4 4 3 2 Class Distribution -------------------- 76% | Mutant 23% | Scavenger-Mutant Dominant Class ---------------- Mutant | -10/Materials Scavenger-Mutant | -10/Mines Mutant | -9/Materials Mutant | -9/Mines Resources | -11 -10 -10 -9 -9 ----------- Run | Yrd Mat Min Mat Min Matter Collected 580 | 224 71 33 232 20 Remotely . | . . . . . Salvage Created 498 | . 142 47 277 32 Parts 49 | . 13 7 26 3 Haulers Intercepted . | . . . . . Recyclers Shooed 2 | . . . 2 . Parts Field Recycled . | . . . . . Retrieved Matter . | . . . . . Parts Self-Destructed . | . . . . . Prevented . | . . . . . Kills | -11 -10 -10 -9 -9 ------- Run | Yrd Mat Min Mat Min Combat Hostiles Destroyed 17 | . 5 3 8 1 Guns 16 | . 5 2 8 1 AOE 1 | . . 1 . . Classes Destroyed 5 | . 2 . 3 . Watcher 1 | . . . 1 . Swarmer 9 | . 3 3 3 . Grunt 6 | . 2 . 3 1 Duelist 1 | . . . 1 . Sentry 1 | . . . 1 . Best Kill Streak 3 | . 3 2 3 1 Combat Bots Only 3 | . 3 2 3 1 Max Kills in Single Turn 1 | . 1 1 1 1 Gunslinging . | . . . . . Exploded 1 | . . 1 . . Melee . | . . . . . Uniques/NPCs Destroyed . | . . . . . Combat | -11 -10 -10 -9 -9 -------- Run | Yrd Mat Min Mat Min Hostile Shots Fired 231 | . 78 43 99 11 Missed 65 | . 20 10 32 3 Damage Taken 1921 | . 667 255 871 128 Core 657 | . 178 69 351 59 Absorbed by Shields . | . . . . . Core Remaining (%) 50 | 100 . 1 . . Volleys Fired 70 | . 15 6 48 1 Largest 2 | . 2 2 2 2 Hottest 155 | . 80 80 110 155 Shots Fired 112 | . 21 12 77 2 Gun 111 | . 21 12 77 1 Cannon . | . . . . . Launcher . | . . . . . Special 1 | . . . . 1 Kinetic 69 | . 10 3 56 . Thermal 22 | . . . 20 2 Explosive . | . . . . . Electromagnetic 21 | . 11 9 1 . Robot Hit Streak 13 | . 12 13 13 9 Robot Miss Streak 4 | . 3 4 4 . Penetration Max . | . . . . . Secondary Targets 2 | . . 2 . . Max Gunslinging Chain 1 | . . 1 . . Shots Hit Robots 71 | . 15 5 50 1 Core Hits 32 | . 9 4 18 1 Critical Kills . | . . . . . Critical Parts Destroyed . | . . . . . Critical Strikes 1 | . . . 1 . Destroy 1 | . . . 1 . Melee Attacks . | . . . . . Impact . | . . . . . Slashing . | . . . . . Piercing . | . . . . . Sneak Attacks . | . . . . . Combat Hostiles . | . . . . . Follow-up Attacks . | . . . . . Damage Inflicted 888 | . 200 84 585 19 Guns 811 | . 156 52 584 19 Cannons . | . . . . . Explosions 76 | . 44 32 . . Melee . | . . . . . Ramming 1 | . . . 1 . Kinetic 358 | . 85 6 267 . Thermal 401 | . 44 32 306 19 Explosive . | . . . . . Electromagnetic 128 | . 71 46 11 . Impact . | . . . . . Slashing . | . . . . . Piercing . | . . . . . Highest Corruption 3 | . 2 3 . 1 Average Corruption 2 | . 2 2 . 1 Corruption Purged . | . . . . . Corruption Blocked . | . . . . . Effects 2 | . 1 1 . . Message Errors 1 | . 1 . . . Matter Fused 1 | . . 1 . . Overload Shots . | . . . . . Overflow Damage 14 | . 14 . . . Projectiles . | . . . . . Explosions 14 | . 14 . . . Melee . | . . . . . Knockbacks . | . . . . . Impact . | . . . . . Kinetic . | . . . . . Secondary . | . . . . . Self-Inflicted Damage 25 | . 25 . . . Shots 1 | . 1 . . . Rammed 1 | . . . 1 . Targets Rammed 1 | . . . 1 . Kicked . | . . . . . Crushed . | . . . . . Highest Temperature 65 | . 65 29 22 33 Average Temperature 23 | . 29 15 16 16 Received Heat Transfer 585 | . 279 . 270 36 Siege Activations . | . . . . . Robots Corrupted . | . . . . . Combat Hostiles . | . . . . . Parts Fried . | . . . . . Impact Corruptions . | . . . . . Robots Melted . | . . . . . Combat Hostiles . | . . . . . Parts Melted 1 | . . . 1 . Heat Transferred 729 | . 50 50 592 37 Parts Sabotaged . | . . . . . Parts Stolen . | . . . . . Parts Stripped . | . . . . . Power Chain Reactions 2 | . 1 1 . . Alert | -11 -10 -10 -9 -9 ------- Run | Yrd Mat Min Mat Min Peak Influence 171 | . 93 78 171 25 Initial 29 | . . 24 29 5 Average 85 | . 48 73 118 16 Maximum Alert Level . | . . . . . Low Security (%) 100 | 100 100 100 100 100 Level 1 . | . . . . . Level 2 . | . . . . . Level 3 . | . . . . . Level 4 . | . . . . . Level 5 . | . . . . . High Security . | . . . . . Max Security . | . . . . . Squads Dispatched 3 | . 2 . 1 . Investigation 1 | . . . 1 . Extermination . | . . . . . Reinforcement 2 | . 2 . . . Assault . | . . . . . Garrison . | . . . . . Intercept . | . . . . . Searches Triggered . | . . . . . Construction Impeded . | . . . . . Haulers Reinforced . | . . . . . Active Scanning Responses . | . . . . . Cargo Convoy Interrupts . | . . . . . Stealth | -11 -10 -10 -9 -9 --------- Run | Yrd Mat Min Mat Min Distress Signals 2 | . 1 . 1 . Communications Jammed . | . . . . . Distress Signals . | . . . . . Times Spotted 39 | . 13 6 17 3 Peak Tracking Total 7 | . 7 3 4 3 Tactical Retreats 1 | . . . 1 . Traps | -11 -10 -10 -9 -9 ------- Run | Yrd Mat Min Mat Min Traps Triggered . | . . . . . Indirectly . | . . . . . Trap Hack Attempts . | . . . . . Triggered . | . . . . . Disarmed . | . . . . . Reprogrammed . | . . . . . Reused . | . . . . . Traps Extracted . | . . . . . Installed . | . . . . . Triggered . | . . . . . Machines | -11 -10 -10 -9 -9 ---------- Run | Yrd Mat Min Mat Min Machines Disabled . | . . . . . Max in Single Turn . | . . . . . Machines Repaired . | . . . . . Machines Dismantled . | . . . . . Machines Sabotaged . | . . . . . Overloaded Fab Kills . | . . . . . Hacking | -11 -10 -10 -9 -9 --------- Run | Yrd Mat Min Mat Min Machines Accessed 1 | . . . 1 . Terminals 1 | . . . 1 . Fabricators . | . . . . . Repair Stations . | . . . . . Recycling Units . | . . . . . Scanalyzers . | . . . . . Garrison Access . | . . . . . Total Hacks 3 | . . . 3 . Successful 2 | . . . 2 . Failed 1 | . . . 1 . Catastrophic . | . . . . . Database Lockouts . | . . . . . Manual . | . . . . . Terminals 3 | . . . 3 . Fabricators . | . . . . . Repair Stations . | . . . . . Recycling Units . | . . . . . Scanalyzers . | . . . . . Garrison Access . | . . . . . Terminal Hacks 2 | . . . 2 . Alert Level 1 | . . . 1 . Zone Layout 1 | . . . 1 . Fabricator Hacks . | . . . . . Repair Station Hacks . | . . . . . Recycling Unit Hacks . | . . . . . Scanalyzer . | . . . . . Garrison Access Hacks . | . . . . . Unauthorized Hacks . | . . . . . Terminals . | . . . . . Fabricators . | . . . . . Repair Stations . | . . . . . Recycling Units . | . . . . . Scanalyzers . | . . . . . Garrison Access . | . . . . . Data Cores Recovered . | . . . . . Used . | . . . . . Hacking Detections 1 | . . . 1 . Full Trace Events 1 | . . . 1 . Feedback Events . | . . . . . Feedback Blocked . | . . . . . Robot Schematics Acquired . | . . . . . Robots Built . | . . . . . Authchips . | . . . . . Time . | . . . . . Total Robot Build Rating . | . . . . . Part Schematics Acquired . | . . . . . Parts Built . | . . . . . Authchips . | . . . . . Time . | . . . . . Total Part Build Rating . | . . . . . Parts Repaired . | . . . . . Time . | . . . . . Parts Recycled . | . . . . . Recycled Matter . | . . . . . Retrieved Matter . | . . . . . Retrieved Components . | . . . . . Parts Scanalyzed . | . . . . . Part Schematics Acquired . | . . . . . Parts Damaged . | . . . . . Bothacking | -11 -10 -10 -9 -9 ------------ Run | Yrd Mat Min Mat Min Used RIF Installer . | . . . . . Robots Hacked . | . . . . . Non-combat . | . . . . . Combat . | . . . . . Robot Hacks Applied . | . . . . . Relay Couplers Released . | . . . . . Fabnet Peak Effective % . | . . . . . Robots Rewired . | . . . . . Allies Hacked . | . . . . . Hacks Repelled . | . . . . . Allies | -11 -10 -10 -9 -9 -------- Run | Yrd Mat Min Mat Min Total Allies . | . . . . . Largest Group . | . . . . . Highest-Rated Group . | . . . . . Highest-Rated Ally . | . . . . . Total Orders . | . . . . . Ally Attacks . | . . . . . Total Damage . | . . . . . Kills . | . . . . . Allies Corrupted . | . . . . . Allies Melted . | . . . . . Intel | -11 -10 -10 -9 -9 ------- Run | Yrd Mat Min Mat Min Robot Analysis Total . | . . . . . Derelict Logs Recovered . | . . . . . Drone Launches . | . . . . . Drone Recoveries . | . . . . . Exploration | -11 -10 -10 -9 -9 ------------- Run | Yrd Mat Min Mat Min Turns Passed 838 | 47 203 144 431 13 Spaces Moved 467 | 33 119 81 230 4 Core 58 | 9 . . 45 4 Treads . | . . . . . Legs 154 | 24 119 11 . . Wheels . | . . . . . Hover 51 | . . . 51 . Flight 204 | . . 70 134 . Fastest Speed 37 | 50 120 117 37 50 Average Speed 114 | 100 120 122 110 87 Slowest Speed 200 | 120 120 190 200 100 Overloaded Moves . | . . . . . Propulsion Burnouts . | . . . . . Robots Hopped . | . . . . . Cave-ins Triggered . | . . . . . Exploration Rate (%) 13 | 3 33 16 14 3 Regions Visited 4 Branch Regions 2 Pre-discovered Areas . | . . . . . Known Exits Taken 1 | . . . 1 . Unknown Exits Taken 3 | 1 1 1 . . Scrap Searched . | . . . . . Spaces Dug . | . . . . . Terrain Destroyed 7 | . 3 4 . . Melee . | . . . . . Projectile . | . . . . . AOE 7 | . 3 4 . . Terrain Rammed . | . . . . . Walls Destroyed . | . . . . . Machines Disabled . | . . . . . Actions | -11 -10 -10 -9 -9 --------- Run | Yrd Mat Min Mat Min Total 670 | 47 160 113 340 10 Wait 45 | . 17 10 18 . Move 463 | 32 118 80 229 4 Hop . | . . . . . Pick Up 42 | 7 7 6 20 2 Fast Attach 1 | . . . 1 . Attach 32 | 7 3 6 13 3 Detach 1 | . . 1 . . Swap 6 | . . 3 3 . Drop 9 | 1 . 1 7 . Fire 70 | . 15 6 48 1 Melee . | . . . . . Ram 1 | . . . 1 . Kick . | . . . . . Crush . | . . . . . Escape Stasis . | . . . . . Rewire . | . . . . . Trap . | . . . . . Miscellaneous . | . . . . . Route ------- -11/Scrapyard -10/Materials -10/Mines -9/Materials (discovered 2 exits: *Min / *Sto) -9/Mines History --------- Turn | Location | Event 7 | -11/Scrapyard | Discovered new exit (range 16) 48 | -11/Scrapyard | Entered Materials 224 | -10/Materials | Discovered new exit (range 6) 237 | -10/Materials | Core integrity fell below 50% 251 | -10/Materials | Entered Mines 270 | -10/Mines | Core integrity fell below 20% 313 | -10/Mines | Lost 5 parts (1p2n1u1w) 322 | -10/Mines | Discovered new exit (range 10) 395 | -10/Mines | Entered Materials 395 | -9/Materials | Evolved 2 slots: Propulsion x2 498 | -9/Materials | Lost 5 parts (1p2n1u1w) 543 | -9/Materials | Discovered new exit (range 5) 633 | -9/Materials | Lost 7 parts (1p2n4w) 735 | -9/Materials | Identified exit to Storage 767 | -9/Materials | Discovered new exit (range 10) 780 | -9/Materials | Core integrity fell below 50% 809 | -9/Materials | Core integrity fell below 20% 820 | -9/Materials | Identified exit to Mines 826 | -9/Materials | Entered Mines 827 | -9/Mines | Assembled infested the area 839 | -9/Mines | Destroyed by G-34 Mercenary with Small Laser Last Messages --------------- LOCATION=MINES GOAL=ESCAPE Something is scanning the area. A derelict emerges from the shadows: "Quick, help me dispose of these Unaware!" ALERT: Infestation in the mines, dispatching Demolisher response squad. B-36 Bruiser: "SECOND INTRUDER APPROACHING. ELIMINATE." B-36 Bruiser sneak attacks. G-34 Mercenary destroyed. 6G-MS3(g) suffers critical hit (Smash). 6G-MS3(g): "Mission, incomplete...*fzzt*" 6G-MS3(g) destroyed. Acquired Imp. Heat Sink. Acquired 20 matter. Melee Analysis Suite destroyed. System corrupted by crushing effect (+1). Mining Laser destroyed. Acquired Ion Engine. Map ----- +----------------------------------------------------+ | | | | | | | | | | | | | | | | | | | | | | | | | ???????????????????????????????????????????????? | | ???????????????????????????????????????????????? | | ???????????????????????????????????????????????? | | ???????????????????????????????????????????????? | | ???????????????????#???????????????????????????? | | ??????????????????## ??????????????????????????? | | ??????????????????# ??????????????????????????? | | ??????????????????# ?????????????????????????? | | ???????????????????# ????????????????????????? | | ????????????????????# ????????????????????????? | | ?????????????????????# ?????##????????????????? | | ?????????????????????# #???# ##???????????????? | | ?????????????????????# ### #???????????????? | | ?????????????????????# g@%! #????????????????? | | ?????????????????????## !%b ##????????????????? | | ??????????????????????#### ##?????????????????? | | ?????????????????????????# ##??????????????????? | | ?????????????????????????# #???????????????????? | | ?????????????????????????# #???????????????????? | | ?????????????????????????# #???????????????????? | | ?????????????????????????# #???????????????????? | | ?????????????????????????# ???????????????????? | | ?????????????????????????# #???????????????????? | | ?????????????????????????# #???????????????????? | | ?????????????????????????? ????????????????????? | | ?????????????????????????? ????????????????????? | | ?????????????????????????? ????????????????????? | | ?????????????????????????? ????????????????????? | | ??????????????????????????#????????????????????? | | ???????????????????????????????????????????????? | | ???????????????????????????????????????????????? | | ???????????????????????????????????????????????? | | ???????????????????????????????????????????????? | | ???????????????????????????????????????????????? | | ???????????????????????????????????????????????? | | ???????????????????????????????????????????????? | | ???????????????????????????????????????????????? | | ???????????????????????????????????????????????? | +----------------------------------------------------+ Best States ------------- Heat Dissipation 39 Energy Generation 14 Energy Capacity 265 Matter Stores 300 Matter Capacity 300 Sight Range 16 Robot Scan Range 14 Terrain Scan Density 10 Base Temperature (-) 100 Evasion (%) 62 Melee Accuracy 5 Item Schematics ----------------- None Robot Schematics ------------------ None Fabricated ------------ Nothing Alien Tech Used ----------------- None Achievements -------------- None Challenges ------------ None Game ------ Seed LongswordRagnarokNullifier Manual? 0 Play Time 00:10:40 Cumulative 6.0 hours Start 2024.05.15 @ 19:43:24 End 2024.05.15 @ 19:53:40 Sessions 1 Manual Loads 0 Difficulty Rogue Special Mode None Game No. 11 Rogue 11 Adventurer 0 Explorer 0 Win Type - Total 0 Types 0/0/0/0/0/0/0/0/0 Lore% 6 Gallery% 15 Achievement% 11 Wizard Run 0 Options --------- Layout 1 ASCII 0 Keyboard 0 Movement Mouse Keybinds 0 Fullscreen 2 Font 32/SmallcapsGlow Map View 50x35 Zoom Use 0% Tactical HUD 0 Map Filters NONE Filters NONE Steam 1 RUN: 4dd66b4a-c96f-42c0-8ef2-9b9f149d1d81